fUST/lending_fUST_20260222
["ID","MTS","AMOUNT","RATE_DAILY","PERIOD"]
[406341279,1771767068081,-500.0,0.00049999,120]
[406341280,1771767068090,-500.0,0.00049999,120]
[406341281,1771767068100,-162.80944731,0.00049999,7]
[406341282,1771767068110,-335.77834463,0.00049999,31]
[406341283,1771767068120,-5000.0,0.0005,2]
[406341284,1771767068129,-199.0,0.0005,7]
[406341285,1771767068139,-328.83389918,0.0005,2]
[406341286,1771767068149,-1000.0,0.0005,15]
[406341287,1771767068158,-541.47085487,0.0005,10]
[406341288,1771767068168,-158.5902363,0.0005,2]
[406341289,1771767068178,-500.0,0.0005,7]
[406341290,1771767068187,-1269.0,0.0005,2]
[406341291,1771767068197,-155.62317668,0.0005,12]
[406341292,1771767068206,-245.088,0.0005,120]
[406341293,1771767068216,-160.0,0.0005,120]
[406341294,1771767068225,-179.0,0.0005,60]
[406341295,1771767068235,-400.0,0.0005,120]
[406341296,1771767068244,-485.31496446,0.0005,120]
[406341297,1771767068255,-1534364.07907603,0.0005,120]
[406341298,1771767068265,-344.52,0.0005,60]
[406341299,1771767068275,-5000.0,0.0005,30]
[406341300,1771767068285,-63256.79939453,0.0005,120]
[406341301,1771767068296,-22360.12700962,0.0005,30]
[406341302,1771767068306,-2844.90860082,0.00050101,14]
[406341303,1771767068316,-450.0,0.00050126,21]
[406341304,1771767068325,-450.0,0.00050126,21]
[406341305,1771767068335,-324.0,0.00050126,21]
[406341306,1771767068344,-200.0,0.00050129,120]
[406341307,1771767068354,-1723.27,0.00050136,120]
[406341308,1771767068363,-510.12,0.000503,120]
[406341309,1771767068373,-1723.27,0.0005041,120]
[406341310,1771767068383,-200.0,0.00050648,120]
[406341311,1771767068392,-1723.27,0.00050684,120]
[406341312,1771767068401,-1723.27,0.00050958,120]
[406341313,1771767068411,-475.0,0.00050978,120]
[406341314,1771767068420,-151.0,0.00050999,50]
[406341315,1771767068430,-160.0,0.00051,120]
[406341316,1771767068440,-8852.23216354,0.00051,120]
[406341317,1771767068451,-2998.02840769,0.00051161,14]
[406341318,1771767068462,-200.0,0.00051167,120]
[406341319,1771767068472,-1723.27,0.00051232,120]
[406341320,1771767068482,-200.0,0.00051398,120]
[406341321,1771767068491,-6100.56254575,0.00051455,14]
[406341322,1771767068502,-5100.0,0.000515,120]
[406341323,1771767068512,-1723.27,0.00051506,120]
[406341324,1771767068522,-510.12,0.00051629,120]
[406341325,1771767068531,-475.0,0.00051762,120]
[406341326,1771767068540,-1723.27,0.0005178,120]
[406341327,1771767068550,-151.0,0.00051799,30]
[406341328,1771767068560,-367.25575519,0.000518,120]
[406341329,1771767068570,-404469.26539172,0.00052,2]
[406341330,1771767068580,-3193.48175604,0.00052,2]
[406341331,1771767068592,-1723.27,0.00052054,120]
[406341332,1771767068602,-3043.96434975,0.00052222,14]
[406341333,1771767068611,-1723.27,0.00052328,120]
[406341334,1771767068621,-475.0,0.00052361,120]
[406341335,1771767068630,-200.0,0.00052437,120]
[406341336,1771767068640,-160.0,0.000525,120]
[406341337,1771767068650,-819.29,0.00052532,30]
[406341338,1771767068660,-1723.27,0.00052602,120]
[406341339,1771767068670,-6887.41379147,0.00052694,14]
[406341340,1771767068679,-263.34,0.00052726,120]
[406341341,1771767068689,-1723.27,0.00052876,120]
[406341342,1771767068698,-510.12,0.00052959,120]
[406341343,1771767068707,-200.0,0.00053049,120]
[406341344,1771767068716,-250.0,0.0005315,21]
[406341345,1771767068726,-250.0,0.0005315,21]
[406341346,1771767068735,-250.0,0.0005315,21]
[406341347,1771767068745,-250.0,0.0005315,21]
[406341348,1771767068754,-311.0,0.0005315,21]
[406341349,1771767068763,-450.0,0.0005315,21]
[406341350,1771767068773,-450.0,0.0005315,21]
[406341351,1771767068782,-323.0,0.0005315,21]
[406341352,1771767068791,-600.0,0.0005315,21]
[406341353,1771767068800,-587.0,0.0005315,21]
[406341354,1771767068811,-1723.27,0.0005315,120]
[406341355,1771767068820,-160.39112489,0.00053193,120]
[406341356,1771767068830,-300.0,0.00053218,21]
[406341357,1771767068839,-300.0,0.00053218,21]
[406341358,1771767068849,-300.0,0.00053218,21]
[406341359,1771767068859,-300.0,0.00053218,21]
[406341360,1771767068868,-3212.3961373,0.00053282,14]
[406341361,1771767068878,-1723.27,0.00053424,120]
[406341362,1771767068887,-1723.27,0.00053698,120]
[406341363,1771767068896,-200.0,0.0005384,120]
[406341364,1771767068906,-663.46,0.000539,120]
[406341365,1771767068915,-7182.48300862,0.00053933,14]
[406341366,1771767068924,-1723.27,0.00053972,120]
[406341367,1771767068933,-475.0,0.00053975,120]
[406341368,1771767068943,-475.0,0.00054,120]
[406341369,1771767068952,-16989.6177903,0.00054,30]
[406341370,1771767068962,-1723.27,0.00054246,120]
[406341371,1771767068971,-3243.02009867,0.00054342,14]
[406341372,1771767068981,-1723.27,0.0005452,120]
[406341373,1771767068990,-200.0,0.00054582,120]
[406341374,1771767068999,-160.0,0.000546,120]
[406341375,1771767069009,-20000.0,0.000547,30]
[406341376,1771767069019,-1000.0,0.00054793,120]
[406341377,1771767069029,-475.0,0.00054793,120]
[406341378,1771767069038,-151.0,0.00054793,30]
[406341379,1771767069048,-300.0,0.00054794,2]
[406341380,1771767069057,-344.62993901,0.00054794,2]
[406341381,1771767069067,-300.0,0.00054794,2]
[406341382,1771767069076,-151.0,0.00054794,60]
[406341383,1771767069086,-1723.27,0.00054794,120]
[406341384,1771767069095,-150.0,0.00054795,120]
[406341385,1771767069105,-150.0,0.0005485,120]
[406341386,1771767069114,-334.55494293,0.000549,120]
[406341387,1771767069123,-247.76868542,0.00054905,120]
[406341388,1771767069132,-10000.0,0.00055,120]
[406341389,1771767069141,-1000.0,0.00055,120]
[406341390,1771767069150,-363.32333591,0.00055,120]
[406341391,1771767069160,-500.0,0.00055,30]
[406341392,1771767069169,-6000.0,0.00055,120]
[406341393,1771767069179,-1723.27,0.00055068,120]
[406341394,1771767069189,-7674.26503719,0.00055172,14]
[406341395,1771767069199,-1024.11,0.00055242,30]
[406341396,1771767069208,-300.0,0.00055342,2]
[406341397,1771767069218,-1723.27,0.00055342,120]
[406341398,1771767069227,-156.0,0.000554,120]
[406341399,1771767069236,-3426.76386691,0.00055403,14]
[406341400,1771767069246,-200.0,0.00055444,120]
[406341401,1771767069256,-351.12,0.00055593,120]
[406341402,1771767069265,-1723.49260344,0.00055616,120]
[406341403,1771767069275,-200.0,0.00055742,120]
[406341404,1771767069285,-526.767499,0.00055811,120]
[406341405,1771767069294,-300.0,0.0005589,2]
[406341406,1771767069304,-1000.0,0.00056,120]
[406341407,1771767069313,-200.0,0.00056,120]
[406341408,1771767069323,-1000.0,0.00056,120]
[406341409,1771767069332,-8067.69066005,0.00056411,14]
[406341410,1771767069342,-300.0,0.00056438,2]
[406341411,1771767069351,-3442.0758476,0.00056463,14]
[406341412,1771767069360,-156.0,0.000567,120]
[406341413,1771767069370,-182.04005177,0.000567,14]
[406341414,1771767069380,-2000.0,0.000569,120]
[406341415,1771767069389,-300.0,0.00056986,2]
[406341416,1771767069399,-1938.42816979,0.00057,120]
[406341417,1771767069408,-1000.0,0.00057,120]
[406341418,1771767069417,-1000.0,0.00057,120]
[406341419,1771767069427,-1022.53,0.00057,14]
[406341420,1771767069436,-1500.0,0.000575,2]
[406341421,1771767069444,-3641.13159652,0.00057523,14]
[406341422,1771767069453,-300.0,0.00057534,2]
[406341423,1771767069462,-8067.69066005,0.00057649,14]
[406341424,1771767069472,-20000.0,0.0005788,120]
[406341425,1771767069481,-1228.93,0.00057952,30]
[406341426,1771767069491,-1000.0,0.00058,120]
[406341427,1771767069499,-1000.0,0.00058,120]
[406341428,1771767069509,-505.50776505,0.00058,120]
[406341429,1771767069606,-1500.0,0.00058,60]
[406341430,1771767069615,-200.0,0.00058,120]
[406341431,1771767069626,-300.0,0.00058082,2]
[406341432,1771767069635,-156.0,0.000581,120]
[406341433,1771767069645,-438.9,0.00058461,120]
[406341434,1771767069655,-160.39112489,0.00058513,120]
[406341435,1771767069664,-213.25718007,0.0005863,2]
[406341436,1771767069674,-500.0,0.00059,120]
[406341437,1771767069684,-1000.0,0.00059,120]
[406341438,1771767069695,-10640.45845993,0.00059,120]
[406341439,1771767069704,-3480.19496026,0.00059,120]
[406341440,1771767069714,-24044.8,0.00059,2]
[406341441,1771767069723,-156.0,0.000594,120]
[406341442,1771767069733,-168.0,0.000598,120]
[406341443,1771767069743,-5000.0,0.0006,2]
[406341444,1771767069753,-200.0,0.0006,120]
[406341445,1771767069763,-1000.0,0.0006,20]
[406341446,1771767069773,-1000.0,0.0006,120]
[406341447,1771767069782,-1018.77169491,0.0006,120]
[406341448,1771767069791,-21764.5037723,0.0006,120]
[406341449,1771767069800,-3325.44003,0.0006,120]
[406341450,1771767069809,-500.0,0.0006,120]
[406341451,1771767069819,-500.0,0.0006,30]
[406341452,1771767069828,-2411.865,0.0006,50]
[406341453,1771767069837,-358.89315875,0.0006,30]
[406341454,1771767069847,-8067.69066005,0.00060127,14]
[406341455,1771767069856,-301.13697095,0.00060273,2]
[406341456,1771767069865,-2000.0,0.00060274,120]
[406341457,1771767069875,-1433.75,0.00060662,30]
[406341458,1771767069885,-156.0,0.000608,120]
[406341459,1771767069894,-500.0,0.00061,120]
[406341460,1771767069903,-526.68,0.00061329,120]
[406341461,1771767069912,-8067.69066005,0.00061366,14]
[406341462,1771767069922,-500.0,0.00062,120]
[406341463,1771767069931,-200.0,0.00062,120]
[406341464,1771767069940,-1404.23,0.00062017,30]
[406341465,1771767069950,-156.0,0.000621,120]
[406341466,1771767069959,-8067.69066005,0.00062605,14]
[406341467,1771767069968,-1000.0,0.00063,120]
[406341468,1771767069977,-195336.21111233,0.00063,120]
[406341469,1771767069986,-500.0,0.00063,120]
[406341470,1771767069996,-1638.57,0.00063372,30]
[406341471,1771767070005,-156.0,0.000635,120]
[406341472,1771767070015,-160.39112491,0.00063832,120]
[406341473,1771767070024,-200.0,0.00064,120]
[406341474,1771767070034,-614.46,0.00064197,120]
[406341475,1771767070043,-156.0,0.000648,120]
[406341476,1771767070052,-200.0,0.00065,120]
[406341477,1771767070061,-500.0,0.00065,120]
[406341478,1771767070070,-500.0,0.00065,30]
[406341479,1771767070079,-1000.0,0.000659,120]
[406341480,1771767070088,-200.0,0.00066,120]
[406341481,1771767070098,-1843.39,0.00066082,30]
[406341482,1771767070107,-156.0,0.000662,120]
[406341483,1771767070116,-500.0,0.00067,120]
[406341484,1771767070125,-702.24,0.00067065,120]
[406341485,1771767070134,-156.0,0.000675,120]
[406341486,1771767070143,-1000.0,0.00068,120]
[406341487,1771767070152,-500.0,0.00068,120]
[406341488,1771767070161,-200.0,0.00068,120]
[406341489,1771767070170,-2048.21,0.00068792,30]
[406341490,1771767070179,-156.0,0.000689,120]
[406341491,1771767070188,-3000.0,0.00069,120]
[406341492,1771767070197,-500.0,0.00069,120]
[406341493,1771767070206,-3000.0,0.0006901,120]
[406341494,1771767070215,-3000.0,0.0006902,120]
[406341495,1771767070224,-5681.433908,0.0006903,120]
[406341496,1771767070233,-210.08,0.0006986,120]
[406341497,1771767070242,-790.03,0.00069933,120]
[406341498,1771767070252,-5000.0,0.0007,2]
[406341499,1771767070261,-1000.0,0.0007,20]
[406341500,1771767070271,-1000.0,0.0007,120]
[406341501,1771767070281,-1000.0,0.0007,120]
[406341502,1771767070292,-1000.0,0.0007,120]
[406341503,1771767070302,-1000.0,0.0007,120]
[406341504,1771767070312,-1000.0,0.0007,120]
[406341505,1771767070322,-1000.0,0.0007,120]
[406341506,1771767070332,-1000.0,0.0007,120]
[406341507,1771767070341,-1000.0,0.0007,120]
[406341508,1771767070351,-1218.65845723,0.0007,120]
[406341509,1771767070360,-200.0,0.0007,120]
[406341510,1771767070369,-1000.0,0.0007,120]
[406341511,1771767070378,-517.95278038,0.0007,120]
[406341512,1771767070387,-156.0,0.000702,120]
[406341513,1771767070397,-400.0,0.00071,120]
[406341514,1771767070406,-156.0,0.000716,120]
[406341515,1771767070416,-200.0,0.00072,120]
[406341516,1771767070426,-1404.23,0.00072354,30]
[406341517,1771767070435,-815.60889603,0.00072801,120]
[406341518,1771767070444,-400.0,0.00073,120]
[406341519,1771767070454,-1000.0,0.00073,120]
[406341520,1771767070465,-156.0,0.00073,120]
[406341521,1771767070475,-1022.53,0.00073,14]
[406341522,1771767070484,-200.0,0.00074,120]
[406341523,1771767070493,-156.0,0.000743,120]
[406341524,1771767070502,-210.08,0.0007485,120]
[406341525,1771767070511,-200.0,0.00075,120]
[406341526,1771767070520,-168.0,0.00075,120]
[406341527,1771767070529,-156.0,0.000757,120]
[406341528,1771767070538,-1000.0,0.000759,120]
[406341529,1771767070547,-24044.8,0.00076,2]
[406341530,1771767070556,-200.0,0.00077,120]
[406341531,1771767070566,-171.0,0.00077,120]
[406341532,1771767070576,-1000.0,0.00078,120]
[406341533,1771767070591,-168.0,0.000786,120]
[406341534,1771767070607,-200.0,0.00079,120]
[406341535,1771767070621,-500.0,0.0008,50]
[406341536,1771767070633,-2113.78156621,0.0008,2]
[406341537,1771767070647,-200.0,0.0008,120]
[406341538,1771767070662,-1000.0,0.0008,50]
[406341539,1771767070676,-1000.0,0.0008,120]
[406341540,1771767070690,-156.0,0.0008,120]
[406341541,1771767070704,-1749.601947,0.0008,120]
[406341542,1771767070720,-188.66902799,0.0008,14]
[406341543,1771767070733,-200.0,0.00081,120]
[406341544,1771767070747,-200.0,0.00082,120]
[406341545,1771767070761,-1404.23,0.0008269,30]
[406341546,1771767070772,-200.0,0.00083,120]
[406341547,1771767070787,-200.0,0.00085,120]
[406341548,1771767070800,-443.0,0.00087,120]
[406341549,1771767070813,-1000.0,0.00088,120]
[406341550,1771767070825,-973.74,0.000883,120]
[406341551,1771767070837,-168.0,0.000886,120]
[406341552,1771767070850,-1000.0,0.0009,20]
[406341553,1771767070863,-600.0,0.0009,120]
[406341554,1771767070877,-292.0,0.0009,120]
[406341555,1771767070891,-1000.0,0.0009,120]
[406341556,1771767070905,-200.0,0.0009,120]
[406341557,1771767070919,-1000.0,0.000909,120]
[406341558,1771767070933,-1404.23,0.00093026,30]
[406341559,1771767070944,-200.0,0.00094,120]
[406341560,1771767070955,-200.0,0.00096,120]
[406341561,1771767070967,-1283.0,0.00098,120]
[406341562,1771767070983,-1000.0,0.00098,120]
[406341563,1771767070997,-200000.0,0.00098,120]
[406341564,1771767071008,-168.0,0.000986,120]
[406341565,1771767071019,-10359.34120007,0.000988,120]
[406341566,1771767071033,-6000.0,0.000989,120]
[406341567,1771767071046,-200.0,0.001,120]
[406341568,1771767071058,-1000.0,0.001,120]
[406341569,1771767071069,-50000.0,0.001,30]
[406341570,1771767071080,-6000.0,0.001,120]
[406341571,1771767071093,-645.0,0.001,120]
[406341572,1771767071105,-903220.16249457,0.001,120]
[406341573,1771767071117,-1022.53,0.001,30]
[406341574,1771767071129,-1404.23,0.00103362,30]
[406341575,1771767071141,-500.0,0.00108827,120]
[406341576,1771767071154,-1000.0,0.00109,120]
[406341577,1771767071166,-457.17112335,0.0010978,120]
[406341578,1771767071177,-449.0,0.0011,10]
[406341579,1771767071189,-1000.0,0.0012,120]
[406341580,1771767071202,-729.69552624,0.0012,120]
[406341581,1771767071214,-159.97,0.0012,60]
[406341582,1771767071226,-24044.8,0.0012,2]
[406341583,1771767071238,-973.74,0.001253,120]
[406341584,1771767071249,-500.0,0.00129,120]
[406341585,1771767071262,-173.98353371,0.0013,120]
[406341586,1771767071274,-701.30630473,0.00131,120]
[406341587,1771767071285,-1247.68845983,0.001327,2]
[406341588,1771767071297,-701.30630473,0.00134967,120]
[406341589,1771767071309,-160.700203,0.00136986,120]
[406341590,1771767071321,-701.30630473,0.00138933,120]
[406341591,1771767071333,-200.0,0.0014,120]
[406341592,1771767071344,-1000.0,0.0014,120]
[406341593,1771767071356,-701.30630473,0.001429,120]
[406341594,1771767071368,-701.30630473,0.00146867,120]
[406341595,1771767071379,-200.0,0.0015,20]
[406341596,1771767071391,-2455.51928255,0.0015,120]
[406341597,1771767071402,-701.30630473,0.00150833,120]
[406341598,1771767071414,-701.30630473,0.001548,120]
[406341599,1771767071427,-160.700203,0.00156556,120]
[406341600,1771767071440,-701.30630473,0.00158767,120]
[406341601,1771767071453,-500.0,0.00159,120]
[406341602,1771767071464,-973.74,0.001624,120]
[406341603,1771767071477,-701.30630473,0.00162733,120]
[406341604,1771767071488,-701.30630473,0.001667,120]
[406341605,1771767071499,-168.0,0.00168,120]
[406341606,1771767071511,-701.30630473,0.00170667,120]
[406341607,1771767071522,-701.30630473,0.00174633,120]
[406341608,1771767071535,-160.700203,0.00176125,120]
[406341609,1771767071546,-152.95438756,0.0017769,120]
[406341610,1771767071557,-701.30630473,0.001786,120]
[406341611,1771767071571,-701.30630473,0.00182567,120]
[406341612,1771767071584,-701.30630473,0.00186533,120]
[406341613,1771767071602,-2000.0,0.0019,120]
[406341614,1771767071614,-512.75754809,0.0019,120]
[406341615,1771767071628,-701.30630473,0.001905,120]
[406341616,1771767071642,-701.30630473,0.00194467,120]
[406341617,1771767071653,-160.700203,0.00195695,120]
[406341618,1771767071667,-701.30630473,0.00198433,120]
[406341619,1771767071681,-507.05883428,0.00199,30]
[406341620,1771767071693,-150.0,0.002,20]
[406341621,1771767071707,-200.0,0.002,120]
[406341622,1771767071719,-1000.0,0.002,120]
[406341623,1771767071732,-500.0,0.002,120]
[406341624,1771767071744,-150.0,0.002,120]
[406341625,1771767071756,-464.68652946,0.002,120]
[406341626,1771767071768,-3569.0,0.002,120]
[406341627,1771767071778,-103255.48951412,0.002,120]
[406341628,1771767071789,-832.87362925,0.002,120]
[406341629,1771767071800,-701.30630473,0.002024,120]
[406341630,1771767071812,-701.30630473,0.00206367,120]
[406341631,1771767071823,-500.0,0.00209,120]
[406341632,1771767071834,-701.30630473,0.00210333,120]
[406341633,1771767071969,-701.30630473,0.002143,120]
[406341634,1771767071982,-160.700203,0.00215264,120]
[406341635,1771767071992,-100000.0,0.00217,120]
[406341636,1771767072001,-701.30630473,0.00218267,120]
[406341637,1771767072010,-457.0,0.0021949,120]
[406341638,1771767072020,-701.30630473,0.00222233,120]
[406341639,1771767072029,-701.30630473,0.002262,120]
[406341640,1771767072038,-200.0,0.00229,120]
[406341641,1771767072047,-701.30630473,0.00230167,120]
[406341642,1771767072057,-701.30630473,0.00234133,120]
[406341643,1771767072067,-160.700203,0.00234834,120]
[406341644,1771767072076,-701.30630473,0.002381,120]
[406341645,1771767072086,-200.0,0.0024,120]
[406341646,1771767072095,-2000.0,0.0024,120]
[406341647,1771767072104,-701.30630473,0.00242067,120]
[406341648,1771767072114,-169.45793578,0.0025,120]
[406341649,1771767072123,-160.700203,0.00254403,120]
[406341650,1771767072132,-168.0,0.0026,120]
[406341651,1771767072141,-160.700203,0.00273973,120]
[406341652,1771767072151,-2554.8701,0.0028,84]
[406341653,1771767072161,-2000.0,0.0029,120]
[406341654,1771767072170,-2566.81557,0.003,61]
[406341655,1771767072179,-5000.0,0.003,120]
[406341656,1771767072189,-200.0,0.003,120]
[406341657,1771767072199,-500.0,0.003,120]
[406341658,1771767072210,-1000.0,0.003,120]
[406341659,1771767072219,-1000.0,0.003,120]
[406341660,1771767072231,-1000.0,0.003,120]
[406341661,1771767072241,-1000.0,0.003,120]
[406341662,1771767072250,-1000.0,0.003,120]
[406341663,1771767072259,-500.0,0.003,120]
[406341664,1771767072269,-500.0,0.00329,120]
[406341665,1771767072278,-1229.12906152,0.0033,120]
[406341666,1771767072288,-618.48717166,0.0033488,73]
[406341667,1771767072298,-200.0,0.0034,120]
[406341668,1771767072308,-2000.0,0.0034,120]
[406341669,1771767072317,-11243.14657365,0.00349998,120]
[406341670,1771767072326,-1000.0,0.0035,120]
[406341671,1771767072336,-1000.0,0.0035,120]
[406341672,1771767072345,-1000.0,0.0035,120]
[406341673,1771767072355,-1000.0,0.0035,120]
[406341674,1771767072365,-1000.0,0.0035,120]
[406341675,1771767072374,-2059.0,0.003517,64]
[406341676,1771767072383,-2222.0,0.0038,120]
[406341677,1771767072393,-4376.20881156,0.003888,120]
[406341678,1771767072403,-7856.0,0.0038965,120]
[406341679,1771767072412,-2000.0,0.0039,120]
[406341680,1771767072421,-8665.0,0.00396586,120]
[406341681,1771767072431,-184.97,0.0039912,120]
[406341682,1771767072439,-155.26639753,0.003999,120]
[406341683,1771767072449,-500.0,0.004,120]
[406341684,1771767072459,-330.0,0.004,120]
[406341685,1771767072468,-1000.0,0.004,120]
[406341686,1771767072477,-1000.0,0.004,120]
[406341687,1771767072486,-1000.0,0.004,120]
[406341688,1771767072495,-1000.0,0.004,120]
[406341689,1771767072506,-1000.0,0.004,120]
[406341690,1771767072517,-5000.0,0.004,60]
[406341691,1771767072528,-200.0,0.004,120]
[406341692,1771767072538,-54864.31413789,0.004,120]
[406341693,1771767072549,-2292.86,0.00411,66]
[406341694,1771767072558,-3585.0,0.00425836,120]
[406341695,1771767072568,-582.88702857,0.00428,90]
[406341696,1771767072580,-8258.0,0.00435864,120]
[406341697,1771767072595,-100000.0,0.00437,120]
[406341698,1771767072604,-200.0,0.0044,120]
[406341699,1771767072614,-2000.0,0.0044,120]
[406341700,1771767072623,-1000.0,0.0045,120]
[406341701,1771767072632,-1000.0,0.0045,120]
[406341702,1771767072642,-538.0,0.0045,120]
[406341703,1771767072651,-500.0,0.00459,120]
[406341704,1771767072660,-9658.0,0.00462781,120]
[406341705,1771767072670,-215.74326498,0.00468298,120]
[406341706,1771767072680,-27014.65902782,0.00469,120]
[406341707,1771767072689,-410.0926196,0.0048,120]
[406341708,1771767072700,-10000.0,0.00488,120]
[406341709,1771767072710,-2000.0,0.0049,120]
[406341710,1771767072719,-2697.238248,0.00491963,85]
[406341711,1771767072729,-500.0,0.005,120]
[406341712,1771767072738,-2000.0,0.005,120]
[406341713,1771767072748,-200.0,0.005,120]
[406341714,1771767072757,-300.0,0.005,120]
[406341715,1771767072767,-150.0,0.005,60]
[406341716,1771767072776,-5000.0,0.005,60]
[406341717,1771767072786,-200.0,0.005,120]
[406341718,1771767072796,-4682.0,0.005,2]
[406341719,1771767072806,-511.46723334,0.005,120]
[406341720,1771767072815,-1000.0,0.005,120]
[406341721,1771767072824,-1000.0,0.005,120]
[406341722,1771767072833,-1000.0,0.005,120]
[406341723,1771767072842,-1000.0,0.005,120]
[406341724,1771767072852,-1000.0,0.005,120]
[406341725,1771767072861,-1000.0,0.005,120]
[406341726,1771767072871,-1000.0,0.005,120]
[406341727,1771767072880,-1000.0,0.005,120]
[406341728,1771767072889,-358.0,0.005,120]
[406341729,1771767072902,-1000.0,0.0051,120]
[406341730,1771767072912,-1000.0,0.0051,120]
[406341731,1771767072921,-1000.0,0.0051,120]
[406341732,1771767072930,-1000.0,0.0051,120]
[406341733,1771767072939,-1000.0,0.0051,120]
[406341734,1771767072948,-1000.0,0.0051,120]
[406341735,1771767072958,-1000.0,0.0051,120]
[406341736,1771767072967,-1000.0,0.0051,120]
[406341737,1771767072976,-1000.0,0.0051,120]
[406341738,1771767072986,-1000.0,0.0052,120]
[406341739,1771767072996,-1000.0,0.0052,120]
[406341740,1771767073005,-1000.0,0.0052,120]
[406341741,1771767073014,-1000.0,0.0052,120]
[406341742,1771767073024,-1000.0,0.0052,120]
[406341743,1771767073033,-1000.0,0.0053,120]
[406341744,1771767073042,-1000.0,0.0053,120]
[406341745,1771767073051,-1000.0,0.0053,120]
[406341746,1771767073061,-1000.0,0.0053,120]
[406341747,1771767073071,-200.0,0.0054,120]
[406341748,1771767073080,-2000.0,0.0054,120]
[406341749,1771767073089,-1000.0,0.0054,120]
[406341750,1771767073099,-1000.0,0.0054,120]
[406341751,1771767073108,-349.19,0.0055,120]
[406341752,1771767073117,-1002.0,0.0058,120]
[406341753,1771767073126,-10000.0,0.00588,120]
[406341754,1771767073136,-2000.0,0.0059,120]
[406341755,1771767073145,-500.0,0.006,120]
[406341756,1771767073154,-200.0,0.006,120]
[406341757,1771767073163,-300.0,0.006,120]
[406341758,1771767073173,-1014.0,0.006,120]
[406341759,1771767073182,-5000.0,0.006,120]
[406341760,1771767073192,-5000.0,0.006,90]
[406341761,1771767073201,-5000.0,0.006,60]
[406341762,1771767073211,-200.0,0.006,120]
[406341763,1771767073220,-1000.00000099,0.006333,120]
[406341764,1771767073229,-5698.3,0.00639901,97]
[406341765,1771767073238,-2000.0,0.0064,120]
[406341766,1771767073248,-200.0,0.0064,120]
[406341767,1771767073257,-2891.0,0.0065,120]
[406341768,1771767073267,-393.74043331,0.00652,120]
[406341769,1771767073277,-205.46111876,0.00674747,120]
[406341770,1771767073286,-50000.0,0.00675,120]
[406341771,1771767073295,-3490.5156801,0.0067985,30]
[406341772,1771767073306,-264.94693126,0.0068,120]
[406341773,1771767073316,-397.15717609,0.0068,120]
[406341774,1771767073326,-260.85904009,0.0068,120]
[406341775,1771767073335,-439.85205456,0.00682,120]
[406341776,1771767073345,-42181.7833118,0.00683,120]
[406341777,1771767073354,-373.75154314,0.00683,120]
[406341778,1771767073364,-476.93467359,0.00683,120]